[Event "Early-Titled-Tuesday-Blitz-April-02-2024"]
[Site "Chess.com"]
[Date "2024.04.02"]
[Round "6"]
[White "KononenkoD"]
[Black "Chess4always"]
[Result "1-0"]
[WhiteElo "2622"]
[BlackElo "2025"]
[TimeControl "180+1"]
[EndTime "9:04:29 PDT"]
[Termination "KononenkoD won by resignation"]

1. e4 {[%clk 0:02:58.6]} 1... c6 {[%clk 0:02:59.5]} 2. c4 {[%clk 0:02:58.1]}
2... d5 {[%clk 0:02:59.3]} 3. cxd5 {[%clk 0:02:59]} 3... cxd5 {[%clk 0:03:00.2]}
4. exd5 {[%clk 0:02:59.3]} 4... Nf6 {[%clk 0:03:00.5]} 5. Bb5+ {[%clk
0:02:58.1]} 5... Nbd7 {[%clk 0:03:00.2]} 6. Nc3 {[%clk 0:02:56.8]} 6... g6
{[%clk 0:03:00.5]} 7. d4 {[%clk 0:02:57.3]} 7... Bg7 {[%clk 0:03:01.1]} 8. d6
{[%clk 0:02:57.8]} 8... exd6 {[%clk 0:03:00]} 9. Qe2+ {[%clk 0:02:57.1]} 9...
Kf8 {[%clk 0:03:00.6]} 10. Bf4 {[%clk 0:02:54.6]} 10... d5 {[%clk 0:03:01]} 11.
Nf3 {[%clk 0:02:46.3]} 11... a6 {[%clk 0:03:01.1]} 12. Bd3 {[%clk 0:02:42.4]}
12... b5 {[%clk 0:02:56.6]} 13. O-O {[%clk 0:02:41.5]} 13... Nb6 {[%clk
0:02:53.5]} 14. Rfe1 {[%clk 0:02:40.5]} 14... h5 {[%clk 0:02:52]} 15. Rac1
{[%clk 0:02:30.2]} 15... Be6 {[%clk 0:02:48.9]} 16. Nxb5 {[%clk 0:02:19.6]}
16... axb5 {[%clk 0:02:45.1]} 17. Bc7 {[%clk 0:02:18.9]} 17... Qe7 {[%clk
0:02:33.8]} 18. Bxb6 {[%clk 0:02:16.3]} 18... Kg8 {[%clk 0:02:32.9]} 19. Bxb5
{[%clk 0:02:07]} 19... Rxa2 {[%clk 0:02:29.6]} 20. Rc8+ {[%clk 0:01:46]} 20...
Kh7 {[%clk 0:02:28.1]} 21. Ng5+ {[%clk 0:01:45.4]} 21... Kh6 {[%clk 0:02:27.1]}
22. Rc7 {[%clk 0:01:29.7]} 22... Qb4 {[%clk 0:02:16.2]} 23. Rxf7 {[%clk
0:01:14.8]} 23... Bg4 {[%clk 0:01:56.7]} 24. Qe3 {[%clk 0:01:04.1]} 24... Re8
{[%clk 0:01:10.7]} 25. Ne6+ {[%clk 0:00:59]} 25... Kh7 {[%clk 0:01:05.6]} 26.
Rxg7+ {[%clk 0:00:58.6]} 26... Kh8 {[%clk 0:01:06.1]} 27. Qh6+ {[%clk
0:00:58.1]} 1-0

[Event "Early-Titled-Tuesday-Blitz-April-02-2024"]
[Site "Chess.com"]
[Date "2024.04.02"]
[Round "6"]
[White "FredddieCroderg"]
[Black "colegiodemadrid"]
[Result "1-0"]
[WhiteElo "2362"]
[BlackElo "2503"]
[TimeControl "180+1"]
[EndTime "9:04:42 PDT"]
[Termination "FredddieCroderg won by resignation"]

1. d4 {[%clk 0:02:59.2]} 1... Nf6 {[%clk 0:02:59.6]} 2. c4 {[%clk 0:02:57.5]}
2... c5 {[%clk 0:03:00.1]} 3. d5 {[%clk 0:02:57]} 3... e6 {[%clk 0:03:00.7]} 4.
Nc3 {[%clk 0:02:55.2]} 4... exd5 {[%clk 0:03:01]} 5. cxd5 {[%clk 0:02:55]} 5...
d6 {[%clk 0:03:01.6]} 6. e4 {[%clk 0:02:55]} 6... g6 {[%clk 0:03:02.3]} 7. f3
{[%clk 0:02:54.7]} 7... Bg7 {[%clk 0:03:03]} 8. Bg5 {[%clk 0:02:52.7]} 8... O-O
{[%clk 0:03:03.1]} 9. Qd2 {[%clk 0:02:52.5]} 9... Re8 {[%clk 0:03:03.1]} 10. Be2
{[%clk 0:02:49.4]} 10... a6 {[%clk 0:02:55.6]} 11. a4 {[%clk 0:02:47.7]} 11...
Nbd7 {[%clk 0:02:53]} 12. Nh3 {[%clk 0:02:45.5]} 12... Ne5 {[%clk 0:02:52.3]}
13. Nf2 {[%clk 0:02:45.4]} 13... c4 {[%clk 0:02:52.2]} 14. O-O {[%clk
0:02:41.6]} 14... Qb6 {[%clk 0:02:48.1]} 15. a5 {[%clk 0:02:38]} 15... Qc5
{[%clk 0:02:45.7]} 16. Na4 {[%clk 0:02:28.3]} 16... Qc7 {[%clk 0:02:41.7]} 17.
Nb6 {[%clk 0:02:25.4]} 17... Rb8 {[%clk 0:02:35.6]} 18. Rfc1 {[%clk 0:02:20.6]}
18... Bd7 {[%clk 0:02:29]} 19. Bxc4 {[%clk 0:02:16.7]} 19... Nxc4 {[%clk
0:02:28.7]} 20. Rxc4 {[%clk 0:02:16.4]} 20... Qd8 {[%clk 0:02:28.7]} 21. Nxd7
{[%clk 0:02:14.8]} 21... Qxd7 {[%clk 0:02:27.1]} 22. Rac1 {[%clk 0:02:14.1]}
22... Qb5 {[%clk 0:02:22]} 23. Nd3 {[%clk 0:02:04.8]} 23... Nd7 {[%clk
0:02:21.6]} 24. b4 {[%clk 0:01:48.8]} 24... b6 {[%clk 0:02:07.4]} 25. axb6
{[%clk 0:01:44.4]} 25... Nxb6 {[%clk 0:02:07.4]} 26. Rc6 {[%clk 0:01:39]} 26...
Bd4+ {[%clk 0:02:02.3]} 27. Be3 {[%clk 0:01:34.7]} 27... Bxe3+ {[%clk
0:02:01.1]} 28. Qxe3 {[%clk 0:01:30.8]} 28... Red8 {[%clk 0:02:02]} 29. Qd4
{[%clk 0:01:23.9]} 29... a5 {[%clk 0:01:54.9]} 30. bxa5 {[%clk 0:01:21.4]} 30...
Qxa5 {[%clk 0:01:55.8]} 31. h4 {[%clk 0:01:19.4]} 31... h5 {[%clk 0:01:27.5]}
32. Nf2 {[%clk 0:01:12.2]} 32... Na4 {[%clk 0:01:16.8]} 33. Ra1 {[%clk
0:01:05.8]} 33... Rb4 {[%clk 0:01:16.4]} 34. Qf6 {[%clk 0:01:02]} 34... Qb5
{[%clk 0:01:08.5]} 35. Qxd8+ {[%clk 0:00:57.5]} 1-0

[Event "Early-Titled-Tuesday-Blitz-April-02-2024"]
[Site "Chess.com"]
[Date "2024.04.02"]
[Round "6"]
[White "trriinu"]
[Black "shirovin"]
[Result "1-0"]
[WhiteElo "2294"]
[BlackElo "2046"]
[TimeControl "180+1"]
[EndTime "9:04:51 PDT"]
[Termination "trriinu won by resignation"]

1. e4 {[%clk 0:02:57.2]} 1... d6 {[%clk 0:02:57.6]} 2. d4 {[%clk 0:02:56.5]}
2... Nf6 {[%clk 0:02:58.2]} 3. Nc3 {[%clk 0:02:56.8]} 3... e5 {[%clk 0:02:57.9]}
4. Nf3 {[%clk 0:02:56.5]} 4... Nbd7 {[%clk 0:02:57]} 5. Bc4 {[%clk 0:02:56.8]}
5... Be7 {[%clk 0:02:57.5]} 6. O-O {[%clk 0:02:56.8]} 6... O-O {[%clk
0:02:57.2]} 7. h3 {[%clk 0:02:44.8]} 7... h6 {[%clk 0:02:54.8]} 8. Be3 {[%clk
0:02:44.2]} 8... c6 {[%clk 0:02:51.3]} 9. a4 {[%clk 0:02:43.4]} 9... Rb8 {[%clk
0:02:49.6]} 10. Qe2 {[%clk 0:02:36.4]} 10... b6 {[%clk 0:02:46.5]} 11. Rad1
{[%clk 0:02:35.6]} 11... Qc7 {[%clk 0:02:44.1]} 12. Nh4 {[%clk 0:02:16.7]} 12...
exd4 {[%clk 0:02:40.4]} 13. Bxd4 {[%clk 0:02:03]} 13... Ne5 {[%clk 0:02:39.7]}
14. Ba2 {[%clk 0:01:58.7]} 14... c5 {[%clk 0:02:35]} 15. Nb5 {[%clk 0:01:57.1]}
15... Qd8 {[%clk 0:02:33.5]} 16. Bxe5 {[%clk 0:01:56.1]} 16... Nd7 {[%clk
0:02:29.8]} 17. Ng6 {[%clk 0:01:40.6]} 17... dxe5 {[%clk 0:02:19.6]} 18. Nxf8
{[%clk 0:01:38.7]} 18... Qxf8 {[%clk 0:02:19.2]} 19. Nxa7 {[%clk 0:01:25.5]}
19... Nf6 {[%clk 0:02:13]} 20. Nc6 {[%clk 0:01:21.4]} 20... Ra8 {[%clk
0:02:10.6]} 21. Nxe5 {[%clk 0:01:06.7]} 21... Ba6 {[%clk 0:02:08.2]} 22. Bc4
{[%clk 0:01:00]} 22... Bb7 {[%clk 0:02:05.5]} 23. Bxf7+ {[%clk 0:00:52.2]} 23...
Kh7 {[%clk 0:02:01.8]} 24. Bg6+ {[%clk 0:00:52.4]} 24... Kg8 {[%clk 0:02:00.9]}
25. Qc4+ {[%clk 0:00:51.2]} 25... Nd5 {[%clk 0:01:15.6]} 26. exd5 {[%clk
0:00:46]} 26... Qf6 {[%clk 0:01:14.3]} 27. d6+ {[%clk 0:00:45.1]} 1-0

[Event "Early-Titled-Tuesday-Blitz-April-02-2024"]
[Site "Chess.com"]
[Date "2024.04.02"]
[Round "6"]
[White "HajiyevKanan"]
[Black "Casper"]
[Result "1-0"]
[WhiteElo "2601"]
[BlackElo "2497"]
[TimeControl "180+1"]
[EndTime "9:04:56 PDT"]
[Termination "HajiyevKanan won by resignation"]

1. d4 {[%clk 0:03:00.9]} 1... f5 {[%clk 0:02:58.3]} 2. g3 {[%clk 0:03:00.8]}
2... Nf6 {[%clk 0:02:58.8]} 3. Bg2 {[%clk 0:03:01.6]} 3... g6 {[%clk 0:02:59.4]}
4. Nf3 {[%clk 0:03:02.4]} 4... Bg7 {[%clk 0:03:00.3]} 5. b3 {[%clk 0:03:02.8]}
5... O-O {[%clk 0:03:01.2]} 6. Bb2 {[%clk 0:03:03.6]} 6... d6 {[%clk 0:03:01.3]}
7. Nbd2 {[%clk 0:03:04.2]} 7... Nc6 {[%clk 0:03:00.8]} 8. c4 {[%clk 0:03:04.8]}
8... Qe8 {[%clk 0:03:01]} 9. d5 {[%clk 0:03:01.3]} 9... Nd8 {[%clk 0:02:56.5]}
10. O-O {[%clk 0:03:00.3]} 10... e5 {[%clk 0:02:56.7]} 11. dxe6 {[%clk
0:03:00.9]} 11... Nxe6 {[%clk 0:02:57.1]} 12. Nd4 {[%clk 0:02:59.2]} 12... Nc5
{[%clk 0:02:55.4]} 13. Re1 {[%clk 0:02:54.1]} 13... c6 {[%clk 0:02:52.4]} 14.
Qc2 {[%clk 0:02:53.6]} 14... Nfe4 {[%clk 0:02:52]} 15. Nxe4 {[%clk 0:02:53]}
15... Nxe4 {[%clk 0:02:51.7]} 16. Rad1 {[%clk 0:02:50.2]} 16... a5 {[%clk
0:02:35.3]} 17. Nf3 {[%clk 0:02:49.5]} 17... Be6 {[%clk 0:02:31.9]} 18. Bxg7
{[%clk 0:02:48.3]} 18... Kxg7 {[%clk 0:02:32.8]} 19. Qb2+ {[%clk 0:02:48.9]}
19... Kg8 {[%clk 0:02:29.9]} 20. Nd2 {[%clk 0:02:48.7]} 20... d5 {[%clk
0:02:27.7]} 21. cxd5 {[%clk 0:02:43.8]} 21... Bxd5 {[%clk 0:02:27.7]} 22. Nxe4
{[%clk 0:02:34.8]} 22... fxe4 {[%clk 0:02:25.1]} 23. e3 {[%clk 0:02:32.7]} 23...
a4 {[%clk 0:02:25.8]} 24. bxa4 {[%clk 0:02:09]} 24... Qf7 {[%clk 0:02:26.4]} 25.
Rd4 {[%clk 0:01:56.8]} 25... c5 {[%clk 0:02:08.7]} 26. Rd2 {[%clk 0:01:28.9]}
26... Rxa4 {[%clk 0:02:09.2]} 27. a3 {[%clk 0:01:18.4]} 27... Rfa8 {[%clk
0:02:07]} 28. Qe5 {[%clk 0:01:11.6]} 28... Bc6 {[%clk 0:02:03.5]} 29. Red1
{[%clk 0:01:05.7]} 29... Qf8 {[%clk 0:01:32]} 30. Bh3 {[%clk 0:00:44.5]} 30...
h5 {[%clk 0:01:32]} 31. Be6+ {[%clk 0:00:43.1]} 31... Kh7 {[%clk 0:01:32.6]} 32.
h4 {[%clk 0:00:27.5]} 32... Rxa3 {[%clk 0:01:27.5]} 33. Rd7+ {[%clk 0:00:27.1]}
1-0

[Event "Early-Titled-Tuesday-Blitz-April-02-2024"]
[Site "Chess.com"]
[Date "2024.04.02"]
[Round "6"]
[White "Mikasinski"]
[Black "secrethawk1"]
[Result "0-1"]
[WhiteElo "2615"]
[BlackElo "2429"]
[TimeControl "180+1"]
[EndTime "9:05:03 PDT"]
[Termination "secrethawk1 won by resignation"]

1. e4 {[%clk 0:03:00.9]} 1... e6 {[%clk 0:02:50.2]} 2. d4 {[%clk 0:03:00.2]}
2... d5 {[%clk 0:02:51.1]} 3. Nc3 {[%clk 0:03:00.3]} 3... dxe4 {[%clk
0:02:50.2]} 4. Nxe4 {[%clk 0:03:00]} 4... Nf6 {[%clk 0:02:49.4]} 5. Nxf6+ {[%clk
0:03:00.4]} 5... Qxf6 {[%clk 0:02:48.7]} 6. Nf3 {[%clk 0:03:00.5]} 6... h6
{[%clk 0:02:47.7]} 7. c3 {[%clk 0:02:57.6]} 7... Bd6 {[%clk 0:02:46.4]} 8. g3
{[%clk 0:02:54]} 8... b6 {[%clk 0:02:44]} 9. Bg2 {[%clk 0:02:53.5]} 9... Bb7
{[%clk 0:02:42.4]} 10. O-O {[%clk 0:02:53.8]} 10... Nd7 {[%clk 0:02:37]} 11. Re1
{[%clk 0:02:47]} 11... O-O {[%clk 0:02:34.5]} 12. Ne5 {[%clk 0:02:44.7]} 12...
Bxg2 {[%clk 0:02:27.6]} 13. Nxd7 {[%clk 0:02:44.5]} 13... Qe7 {[%clk 0:02:27.1]}
14. Kxg2 {[%clk 0:02:36]} 14... Qxd7 {[%clk 0:02:23.8]} 15. Qf3 {[%clk
0:02:33.5]} 15... a5 {[%clk 0:02:21.5]} 16. a4 {[%clk 0:02:30.9]} 16... Rae8
{[%clk 0:02:14.7]} 17. h4 {[%clk 0:02:15.9]} 17... f6 {[%clk 0:02:11]} 18. h5
{[%clk 0:02:12.2]} 18... e5 {[%clk 0:02:06]} 19. Qd5+ {[%clk 0:01:57]} 19... Kh8
{[%clk 0:02:03.4]} 20. dxe5 {[%clk 0:01:56.1]} 20... Rxe5 {[%clk 0:01:59.1]} 21.
Rxe5 {[%clk 0:01:55.5]} 21... fxe5 {[%clk 0:01:57.7]} 22. Be3 {[%clk 0:01:55.8]}
22... Qf5 {[%clk 0:01:53.7]} 23. Rh1 {[%clk 0:01:52.1]} 23... Qc2 {[%clk
0:01:49.5]} 24. Qd2 {[%clk 0:01:46.5]} 24... Qxa4 {[%clk 0:01:45.8]} 25. Bxh6
{[%clk 0:01:44.1]} 25... Qe4+ {[%clk 0:01:43.9]} 26. Kg1 {[%clk 0:01:39.4]}
26... gxh6 {[%clk 0:01:37.8]} 27. Qxh6+ {[%clk 0:01:38.5]} 27... Qh7 {[%clk
0:01:37.1]} 28. Qd2 {[%clk 0:01:31]} 28... Rf6 {[%clk 0:01:30.5]} 29. h6 {[%clk
0:01:27.7]} 29... Rf8 {[%clk 0:01:28.7]} 30. Kg2 {[%clk 0:01:18.7]} 30... Qe4+
{[%clk 0:01:26.6]} 31. Kg1 {[%clk 0:01:18]} 31... Bc5 {[%clk 0:01:20.7]} 32. Rh2
{[%clk 0:01:14.1]} 32... Qb1+ {[%clk 0:01:13.6]} 0-1

[Event "Early-Titled-Tuesday-Blitz-April-02-2024"]
[Site "Chess.com"]
[Date "2024.04.02"]
[Round "6"]
[White "KubaGepard"]
[Black "KNVB"]
[Result "1-0"]
[WhiteElo "2588"]
[BlackElo "2782"]
[TimeControl "180+1"]
[EndTime "9:05:15 PDT"]
[Termination "KubaGepard won by checkmate"]

1. d4 {[%clk 0:03:00.9]} 1... e5 {[%clk 0:02:59.4]} 2. dxe5 {[%clk 0:02:58.4]}
2... Nc6 {[%clk 0:02:59.5]} 3. Nf3 {[%clk 0:02:58.7]} 3... Qe7 {[%clk
0:02:59.9]} 4. Nc3 {[%clk 0:02:53.4]} 4... Nxe5 {[%clk 0:03:00.1]} 5. Nd5 {[%clk
0:02:53.2]} 5... Nxf3+ {[%clk 0:03:00.4]} 6. gxf3 {[%clk 0:02:53.7]} 6... Qd8
{[%clk 0:03:01.3]} 7. Qd4 {[%clk 0:02:53.5]} 7... Ne7 {[%clk 0:02:39.1]} 8. Bg5
{[%clk 0:02:47.5]} 8... f6 {[%clk 0:02:39.3]} 9. Bxf6 {[%clk 0:02:11.9]} 9...
gxf6 {[%clk 0:02:38.2]} 10. Nxf6+ {[%clk 0:02:11.9]} 10... Kf7 {[%clk
0:02:38.6]} 11. Nh5 {[%clk 0:02:12.5]} 11... Ng6 {[%clk 0:01:12.5]} 12. e4
{[%clk 0:02:03.1]} 12... d5 {[%clk 0:01:05.3]} 13. O-O-O {[%clk 0:01:24]} 13...
Qg5+ {[%clk 0:01:00.8]} 14. f4 {[%clk 0:01:21.7]} 14... Qxh5 {[%clk 0:01:00.3]}
15. f5 {[%clk 0:01:21.5]} 15... Bh6+ {[%clk 0:00:27.2]} 16. Kb1 {[%clk
0:01:19.7]} 16... Rd8 {[%clk 0:00:27]} 17. fxg6+ {[%clk 0:01:18.3]} 17... hxg6
{[%clk 0:00:23.4]} 18. Bc4 {[%clk 0:01:14.1]} 18... Bg7 {[%clk 0:00:08.5]} 19.
Bxd5+ {[%clk 0:01:09.6]} 19... Kf8 {[%clk 0:00:03.1]} 20. Qc5+ {[%clk
0:01:06.3]} 20... Rd6 {[%clk 0:00:02.8]} 21. Qxc7 {[%clk 0:01:05.3]} 21... Rxd5
{[%clk 0:00:01.6]} 22. Rxd5 {[%clk 0:01:02.5]} 22... Qf3 {[%clk 0:00:01.5]} 23.
Rd8# {[%clk 0:01:02.2]} 1-0

[Event "Early-Titled-Tuesday-Blitz-April-02-2024"]
[Site "Chess.com"]
[Date "2024.04.02"]
[Round "6"]
[White "Yan_Dyomin2010"]
[Black "m_ezat"]
[Result "1-0"]
[WhiteElo "2693"]
[BlackElo "2553"]
[TimeControl "180+1"]
[EndTime "9:05:16 PDT"]
[Termination "Yan_Dyomin2010 won on time"]

1. e4 {[%clk 0:03:00.4]} 1... e5 {[%clk 0:02:57.5]} 2. Nc3 {[%clk 0:02:57.5]}
2... Nf6 {[%clk 0:02:56]} 3. d4 {[%clk 0:02:57.8]} 3... exd4 {[%clk 0:02:49.9]}
4. Qxd4 {[%clk 0:02:58.3]} 4... Nc6 {[%clk 0:02:50]} 5. Qd3 {[%clk 0:02:55.8]}
5... Bb4 {[%clk 0:02:49]} 6. Bd2 {[%clk 0:02:54.2]} 6... O-O {[%clk 0:02:48.8]}
7. O-O-O {[%clk 0:02:53]} 7... Re8 {[%clk 0:02:49.4]} 8. Nge2 {[%clk 0:02:52.8]}
8... d6 {[%clk 0:02:47.2]} 9. Bg5 {[%clk 0:02:52.1]} 9... Be6 {[%clk 0:02:34.5]}
10. a3 {[%clk 0:02:47.4]} 10... Ba5 {[%clk 0:02:32.9]} 11. f4 {[%clk 0:02:45.2]}
11... h6 {[%clk 0:02:31.9]} 12. Bh4 {[%clk 0:02:45.3]} 12... Bg4 {[%clk
0:02:24.8]} 13. h3 {[%clk 0:02:40.7]} 13... Bxe2 {[%clk 0:02:18.7]} 14. Nxe2
{[%clk 0:02:36.9]} 14... g5 {[%clk 0:02:07.7]} 15. fxg5 {[%clk 0:02:33.5]} 15...
Nxe4 {[%clk 0:02:08]} 16. Ng3 {[%clk 0:02:16.6]} 16... Nf2 {[%clk 0:02:01.5]}
17. Qf5 {[%clk 0:02:13.6]} 17... Nxd1 {[%clk 0:01:59.2]} 18. Bd3 {[%clk
0:02:11.2]} 18... Re5 {[%clk 0:00:48.2]} 19. Qh7+ {[%clk 0:02:09.5]} 19... Kf8
{[%clk 0:00:48.3]} 20. Qh8+ {[%clk 0:01:56.9]} 20... Ke7 {[%clk 0:00:47.9]} 21.
gxh6+ {[%clk 0:01:57.4]} 21... f6 {[%clk 0:00:45.2]} 22. Bxf6+ {[%clk
0:01:56.3]} 22... Kd7 {[%clk 0:00:45.4]} 23. Bxd8 {[%clk 0:01:56.4]} 23... Rxd8
{[%clk 0:00:45.4]} 24. Qg7+ {[%clk 0:01:55.8]} 24... Kc8 {[%clk 0:00:45.5]} 25.
Qg4+ {[%clk 0:01:54.7]} 25... Kb8 {[%clk 0:00:44.8]} 26. Rxd1 {[%clk 0:01:54.6]}
26... Bb6 {[%clk 0:00:42]} 27. h7 {[%clk 0:01:53.6]} 27... Re7 {[%clk
0:00:36.6]} 28. Kb1 {[%clk 0:01:47.8]} 28... Ne5 {[%clk 0:00:34.2]} 29. Qg8
{[%clk 0:01:46.9]} 29... Ree8 {[%clk 0:00:34]} 30. Qg7 {[%clk 0:01:45.8]} 30...
Bd4 {[%clk 0:00:32.7]} 31. c3 {[%clk 0:01:44.6]} 31... Bb6 {[%clk 0:00:26.5]}
32. Nf5 {[%clk 0:01:44.3]} 32... a6 {[%clk 0:00:22]} 33. Ne7 {[%clk 0:01:42.2]}
33... Be3 {[%clk 0:00:11.9]} 34. Ng8 {[%clk 0:01:41.6]} 1-0

[Event "Early-Titled-Tuesday-Blitz-April-02-2024"]
[Site "Chess.com"]
[Date "2024.04.02"]
[Round "6"]
[White "Savagelittlemole"]
[Black "bilelou"]
[Result "0-1"]
[WhiteElo "2524"]
[BlackElo "2664"]
[TimeControl "180+1"]
[EndTime "9:05:16 PDT"]
[Termination "bilelou won by resignation"]

1. e4 {[%clk 0:03:00.9]} 1... c5 {[%clk 0:02:59.1]} 2. Ne2 {[%clk 0:03:00.6]}
2... Nc6 {[%clk 0:02:52.1]} 3. g3 {[%clk 0:03:00.7]} 3... d5 {[%clk 0:02:51.4]}
4. Bg2 {[%clk 0:03:00.3]} 4... e6 {[%clk 0:02:50.6]} 5. exd5 {[%clk 0:02:59.8]}
5... exd5 {[%clk 0:02:49.6]} 6. d4 {[%clk 0:03:00.1]} 6... Nf6 {[%clk
0:02:45.3]} 7. O-O {[%clk 0:02:59.2]} 7... Be7 {[%clk 0:02:35.9]} 8. dxc5 {[%clk
0:02:58.8]} 8... Bxc5 {[%clk 0:02:36.8]} 9. Nd2 {[%clk 0:02:48.6]} 9... O-O
{[%clk 0:02:34.2]} 10. Nb3 {[%clk 0:02:48.8]} 10... Bb6 {[%clk 0:02:34.5]} 11.
Ned4 {[%clk 0:02:46.1]} 11... h6 {[%clk 0:02:32.8]} 12. h3 {[%clk 0:02:45]}
12... Re8 {[%clk 0:02:32]} 13. c3 {[%clk 0:02:43.2]} 13... Ne4 {[%clk
0:02:31.5]} 14. Bf4 {[%clk 0:02:27.2]} 14... Qf6 {[%clk 0:02:29.6]} 15. Nxc6
{[%clk 0:02:00.4]} 15... bxc6 {[%clk 0:02:27.5]} 16. Nd4 {[%clk 0:02:00.8]}
16... Ba6 {[%clk 0:02:26.5]} 17. Re1 {[%clk 0:01:57.9]} 17... Nxf2 {[%clk
0:02:01.4]} 18. Kxf2 {[%clk 0:01:53.1]} 18... g5 {[%clk 0:02:00.5]} 19. Qf3
{[%clk 0:01:39.6]} 19... gxf4 {[%clk 0:01:31.7]} 20. Qxf4 {[%clk 0:01:38.8]}
20... Qxf4+ {[%clk 0:01:30.7]} 21. gxf4 {[%clk 0:01:39]} 21... Bd3 {[%clk
0:01:23.6]} 22. Re3 {[%clk 0:01:15.2]} 22... Rxe3 {[%clk 0:01:19.4]} 23. Kxe3
{[%clk 0:01:16.1]} 23... Bg6 {[%clk 0:01:15.6]} 24. Re1 {[%clk 0:01:13.3]} 24...
c5 {[%clk 0:01:10.8]} 25. Nb3 {[%clk 0:01:12.8]} 25... d4+ {[%clk 0:01:10.6]}
26. Kd2 {[%clk 0:01:08.7]} 26... Rd8 {[%clk 0:01:06.3]} 27. cxd4 {[%clk
0:01:00.1]} 27... c4 {[%clk 0:01:03.5]} 28. Nc1 {[%clk 0:00:22.5]} 28... Ba5+
{[%clk 0:01:02.1]} 29. Ke2 {[%clk 0:00:22.8]} 29... Re8+ {[%clk 0:00:59.7]} 0-1

[Event "Early-Titled-Tuesday-Blitz-April-02-2024"]
[Site "Chess.com"]
[Date "2024.04.02"]
[Round "6"]
[White "Ergali_Suleimen"]
[Black "campochess"]
[Result "1-0"]
[WhiteElo "2370"]
[BlackElo "2184"]
[TimeControl "180+1"]
[EndTime "9:05:26 PDT"]
[Termination "Ergali_Suleimen won by resignation"]

1. e4 {[%clk 0:02:52.2]} 1... c5 {[%clk 0:02:58.7]} 2. Nf3 {[%clk 0:02:52]} 2...
Nc6 {[%clk 0:02:58.8]} 3. d4 {[%clk 0:02:52.2]} 3... cxd4 {[%clk 0:02:58.8]} 4.
Nxd4 {[%clk 0:02:53.1]} 4... e5 {[%clk 0:02:57.4]} 5. Nb5 {[%clk 0:02:52.9]}
5... a6 {[%clk 0:02:57.7]} 6. Nd6+ {[%clk 0:02:52.4]} 6... Bxd6 {[%clk
0:02:57.7]} 7. Qxd6 {[%clk 0:02:52.9]} 7... Qe7 {[%clk 0:02:57.8]} 8. Qd1 {[%clk
0:02:52.1]} 8... Nf6 {[%clk 0:02:56.9]} 9. Nc3 {[%clk 0:02:51.7]} 9... d6 {[%clk
0:02:56.8]} 10. Be2 {[%clk 0:02:48.5]} 10... Be6 {[%clk 0:02:56.4]} 11. O-O
{[%clk 0:02:47.7]} 11... h6 {[%clk 0:02:56.5]} 12. f4 {[%clk 0:02:38]} 12...
exf4 {[%clk 0:02:55.3]} 13. Bxf4 {[%clk 0:02:38.1]} 13... Rd8 {[%clk 0:02:55.2]}
14. Nd5 {[%clk 0:02:37.2]} 14... Bxd5 {[%clk 0:02:52.7]} 15. exd5 {[%clk
0:02:38.1]} 15... Ne5 {[%clk 0:02:52.6]} 16. Bf3 {[%clk 0:02:30.4]} 16... O-O
{[%clk 0:02:46.5]} 17. Re1 {[%clk 0:02:29]} 17... Rfe8 {[%clk 0:02:44.1]} 18.
Kh1 {[%clk 0:02:27.9]} 18... Qc7 {[%clk 0:02:43.7]} 19. Bxe5 {[%clk 0:02:22.6]}
19... Rxe5 {[%clk 0:02:41.5]} 20. Rxe5 {[%clk 0:02:22.2]} 20... dxe5 {[%clk
0:02:41.4]} 21. Qd3 {[%clk 0:02:21.6]} 21... Qc5 {[%clk 0:02:35]} 22. c4 {[%clk
0:02:17.4]} 22... Qf2 {[%clk 0:02:34.6]} 23. Qe2 {[%clk 0:02:14.2]} 23... Qc5
{[%clk 0:02:28.2]} 24. Qxe5 {[%clk 0:02:03.7]} 24... Qxc4 {[%clk 0:02:25.9]} 25.
Rd1 {[%clk 0:02:03.9]} 25... Qc2 {[%clk 0:02:21.7]} 26. d6 {[%clk 0:01:57.6]}
26... Qc8 {[%clk 0:01:19.7]} 27. h3 {[%clk 0:01:37.4]} 27... Qe6 {[%clk
0:01:16.6]} 28. Qxe6 {[%clk 0:01:34.4]} 28... fxe6 {[%clk 0:01:16.5]} 29. Bxb7
{[%clk 0:01:34.9]} 29... a5 {[%clk 0:01:12.4]} 30. Kg1 {[%clk 0:01:12.5]} 30...
Kf8 {[%clk 0:01:10.9]} 31. Bc6 {[%clk 0:01:09.2]} 31... g5 {[%clk 0:01:04.1]}
32. Kf2 {[%clk 0:01:08.4]} 32... Nd7 {[%clk 0:01:03.8]} 33. Bxd7 {[%clk
0:01:03.4]} 33... Rxd7 {[%clk 0:01:03.1]} 34. Ke3 {[%clk 0:01:04.1]} 34... Kg7
{[%clk 0:01:03.3]} 35. Ke4 {[%clk 0:01:03.8]} 35... Kf6 {[%clk 0:01:03.4]} 36.
Rf1+ {[%clk 0:01:03.6]} 36... Kg6 {[%clk 0:01:02.5]} 37. Ke5 {[%clk 0:01:04.2]}
37... Rb7 {[%clk 0:00:54.8]} 38. b3 {[%clk 0:01:03.5]} 38... Rb4 {[%clk
0:00:50.4]} 39. Rf6+ {[%clk 0:00:55.2]} 39... Kg7 {[%clk 0:00:47.3]} 40. Rxe6
{[%clk 0:00:56.1]} 1-0